bitfinex-derivatives/quotes_ETHF0:USTF0_20251003
["timestamp","ask_amount","ask_price","bid_price","bid_amount"]
[1759449913358,0.6688,4477.5,4477.4,0.62669]
[1759449913564,0.4589,4477.5,4477.4,5.62669]
[1759449913765,0.1255,4477.5,4477.4,5.62669]
[1759449914270,0.4589,4477.5,4477.4,5.62669]
[1759449916669,0.1255,4477.5,4477.4,5.62669]
[1759449916876,0.12714303,4478.0,4477.9,0.40165]
[1759449917173,0.33704303,4478.0,4477.9,3.83445]
[1759449917368,0.67044303,4478.0,4477.9,3.83445]
[1759449917568,0.87574303,4478.0,4477.9,3.83445]
[1759449918071,0.67044303,4478.0,4477.9,3.83445]
[1759449918963,0.87574303,4478.0,4477.9,3.83445]
[1759449920769,0.87574303,4478.0,4477.9,3.2078]
[1759449920770,4.08354303,4478.0,4477.9,3.2078]
[1759449920976,4.08354303,4478.0,4477.9,3.4328]
[1759449922180,4.08354303,4478.0,4477.9,0.225]
[1759449922374,4.08354303,4478.0,4477.6,0.40167]
[1759449922574,0.87574303,4478.0,4477.7,0.225]
[1759449923171,3.9564,4477.8,4477.7,0.225]
[1759449926080,0.3334,4477.8,4477.7,0.225]
[1759449926881,0.3334,4477.8,4477.7,5.225]
[1759449927079,0.44314303,4478.0,4477.8,0.40166]
[1759449927278,0.44314303,4478.0,4477.9,3.2078]
[1759449929796,0.44314303,4478.0,4477.9,3.4328]
[1759449930595,0.85404303,4478.0,4477.9,3.2078]
[1759449930797,0.85404303,4478.0,4477.9,3.4328]
[1759449931293,0.85404303,4478.0,4477.9,3.83445]
[1759449932986,0.85404303,4478.0,4477.9,3.60945]
[1759449933190,0.85404303,4478.0,4477.9,3.83445]
[1759449934495,4.06184303,4478.0,4477.9,3.2078]
[1759449934689,4.06184303,4478.0,4477.9,3.4328]
[1759449934996,4.06184303,4478.0,4477.9,3.83445]
[1759449937298,0.8718,4477.5,4477.4,3.2078]
[1759449937499,4.0796,4477.5,4477.4,3.4328]
[1759449938302,4.0796,4477.5,4477.4,3.60949]
[1759449938501,4.0796,4477.5,4477.4,3.83449]
[1759449939103,4.0796,4477.5,4477.4,3.60949]
[1759449939301,4.0796,4477.5,4477.4,3.83449]
[1759449941204,4.48128,4477.5,4477.4,3.83449]
[1759449941608,4.48128,4477.5,4477.4,3.4328]
[1759449942100,0.95943,4477.0,4476.9,3.2078]
[1759449942305,4.48133,4477.0,4476.9,3.4328]
[1759449942707,4.48133,4477.0,4476.9,0.225]
[1759449942900,4.97302278,4477.0,4476.9,0.225]
[1759449943206,1.27357,4476.5,4476.4,3.2078]
[1759449943407,4.48137,4476.5,4476.4,3.4328]
[1759449943706,0.8718,4476.5,4476.4,3.4328]
[1759449945706,0.4459,4476.5,4476.4,3.4328]
[1759449945901,0.1318,4477.0,4476.6,1.00442]
[1759449946106,0.4459,4477.0,4476.9,3.2078]
[1759449946305,0.4459,4477.0,4476.9,3.4328]
[1759449947596,0.4459,4477.0,4476.9,3.83454]
[1759449950108,0.4459,4477.0,4476.9,8.83454]
[1759449950311,0.3141,4477.4,4477.1,1.0043]
[1759449950609,0.3141,4477.4,4477.2,0.62671]
[1759449951208,0.1318,4477.5,4477.4,0.40169]
[1759449951405,0.12714303,4478.0,4477.4,0.40169]
[1759449951406,0.33584303,4478.0,4477.9,0.40165]
[1759449951702,0.55304303,4478.0,4477.9,3.83445]
[1759449952011,4.07494303,4478.0,4477.9,3.83445]
[1759449954315,4.07494303,4478.0,4477.9,3.60945]
[1759449954508,4.07494303,4478.0,4477.9,3.83445]
[1759449956315,4.07494303,4478.0,4477.9,3.2078]
[1759449956715,4.07494303,4478.0,4477.9,3.4328]
[1759449957019,4.07494303,4478.0,4477.9,3.2078]
[1759449957314,4.07494303,4478.0,4477.9,3.4328]
[1759449958810,4.07494303,4478.0,4477.9,3.83445]
[1759449959213,4.07494303,4478.0,4477.9,3.4328]
[1759449959917,4.07494303,4478.0,4477.9,3.83445]
[1759449960512,4.07494303,4478.0,4477.9,3.4328]
[1759449961726,4.07494303,4478.0,4477.9,0.225]
[1759449963118,4.07494303,4478.0,4477.4,3.2078]
[1759449963119,0.8862,4477.5,4477.4,3.2078]
[1759449963414,4.094,4477.5,4477.4,3.4328]
[1759449964306,4.094,4477.5,4477.4,3.83449]
[1759449964511,0.4685,4477.5,4477.4,3.83449]
[1759449968322,0.4685,4477.5,4477.4,8.83449]
[1759449971122,0.8862,4477.5,4477.4,3.60949]
[1759449971325,0.8862,4477.5,4477.4,3.83449]
[1759449971929,0.8862,4477.5,4477.4,3.60949]
[1759449972226,0.8862,4477.5,4477.4,3.83449]
[1759449972721,0.8862,4477.5,4477.4,3.60949]
[1759449972926,0.8862,4477.5,4477.4,3.83449]
[1759449976832,0.8862,4477.5,4477.4,3.60949]
[1759449977032,0.8862,4477.5,4477.4,3.83449]
[1759449977232,0.8862,4477.5,4477.4,3.60949]
[1759449977535,0.8862,4477.5,4477.4,3.83449]
[1759449978431,0.8862,4477.5,4477.4,3.60949]
[1759449978729,0.8862,4477.5,4477.4,3.83449]
[1759449978930,0.8862,4477.5,4477.4,3.60949]
[1759449979130,4.094,4477.5,4477.4,3.83449]
[1759449979523,4.094,4477.5,4477.4,3.2078]
[1759449979728,4.094,4477.5,4477.4,3.83449]
[1759449980634,4.094,4477.5,4477.4,3.60949]
[1759449981037,4.094,4477.5,4477.4,3.83449]
[1759449981241,4.49568,4477.5,4477.4,3.83449]
[1759449981536,4.49568,4477.5,4477.4,0.62669]
[1759449982238,4.49568,4477.5,4477.4,0.40169]
[1759449982431,4.49568,4477.5,4477.4,0.62669]
[1759449983039,4.094,4477.5,4477.4,0.62669]
[1759449983337,4.49568,4477.5,4477.4,0.62669]
[1759449989053,4.094,4477.5,4477.4,0.40169]
[1759449989351,4.49568,4477.5,4477.4,0.62669]
[1759449994757,4.094,4477.5,4477.4,0.62669]
[1759449998258,4.094,4477.5,4477.4,0.40169]
[1759449998458,4.086,4477.5,4477.4,0.62669]
[1759449999056,3.966,4477.4,4476.8,4.80184517]
[1759449999353,3.966,4476.9,4476.8,3.60955]
[1759449999552,3.966,4476.9,4476.8,3.83455]
[1759449999752,0.7582,4476.9,4476.8,3.83455]
[1759450000352,1.15994,4476.9,4476.8,3.83455]
[1759450003670,1.15994,4476.9,4476.8,4.57625]
[1759450004963,1.15994,4476.9,4476.8,4.27145]
[1759450005360,1.15994,4476.9,4476.8,3.83455]
[1759450007465,1.15994,4476.9,4476.8,3.60955]
[1759450007666,1.15994,4476.9,4476.8,3.83455]
[1759450008271,1.15994,4476.9,4476.8,3.83025]
[1759450008569,1.15994,4476.9,4476.8,4.05525]
[1759450009067,1.15994,4476.9,4476.8,4.36005]
[1759450009263,1.15994,4476.9,4476.8,3.4285]
[1759450009664,1.15994,4476.9,4476.8,3.2078]
[1759450009866,1.15994,4476.9,4476.8,3.4328]
[1759450010572,0.9368,4477.4,4477.3,1.1434]
[1759450010769,1.65331922,4477.4,4477.3,0.9667]
[1759450014175,0.49341922,4477.4,4477.3,0.9667]
[1759450014376,0.40169,4477.5,4477.4,0.83859]
[1759450014673,4.14459,4477.5,4477.4,0.9667]
[1759450014974,1.65324235,4477.5,4477.4,1.36839]
[1759450017069,1.65324235,4477.5,4477.4,0.9667]
[1759450017984,1.78314235,4477.5,4477.4,0.9667]
[1759450018179,1.78314235,4477.5,4477.4,0.4457]
[1759450018471,4.15805235,4477.5,4477.1,0.2207]
[1759450018678,1.15991,4477.2,4477.1,0.62242]
[1759450018877,1.15991,4477.2,4477.1,0.84742]
[1759450019071,1.15991,4477.2,4477.1,1.15222]
[1759450019271,0.2081,4477.4,4477.3,0.8386]
[1759450019473,0.93679,4477.4,4477.3,1.1434]
[1759450020075,0.93677,4477.7,4477.6,0.5255]
[1759450020282,0.93677,4477.7,4477.6,1.36837]
[1759450020580,0.93677,4477.7,4477.6,0.9667]
[1759450020773,1.15987,4477.7,4477.6,0.9667]
[1759450021175,1.65334775,4477.7,4477.6,0.9667]
[1759450022276,1.65334775,4477.7,4477.6,1.36837]
[1759450022477,0.93677,4477.7,4477.6,1.36837]
[1759450022872,0.5351,4477.7,4477.6,1.36837]
[1759450023073,0.91438303,4478.0,4477.9,1.12615]
[1759450023679,4.12218303,4478.0,4477.9,1.12615]
[1759450024284,4.33088303,4478.0,4477.9,1.12615]
[1759450024584,4.46508303,4478.0,4477.9,1.12615]
[1759450024782,4.33088303,4478.0,4477.9,0.7245]
[1759450027784,0.00164303,4478.0,4477.9,4.33395]
[1759450030690,0.00164303,4478.0,4477.9,4.55895]
[1759450032280,0.20934303,4478.0,4477.9,4.55895]
[1759450032585,0.00164303,4478.0,4477.9,4.55895]
[1759450033083,0.51274303,4478.0,4477.9,4.1573]
[1759450033284,4.06344303,4478.0,4477.5,0.16819625]
[1759450033485,3.9276,4477.6,4477.5,0.16819625]
[1759450033689,3.9276,4477.6,4477.5,0.225]
[1759450034385,0.1342,4477.5,4477.4,3.2078]
[1759450034583,4.0618,4477.5,4477.4,3.4328]
[1759450035088,4.0618,4477.5,4477.4,3.6364]
[1759450037088,4.0618,4477.5,4477.4,0.4286]
[1759450038083,4.0618,4477.5,4477.4,0.7388]
[1759450038789,4.46348,4477.5,4477.4,0.7388]
[1759450039190,4.46348,4477.5,4477.4,0.4286]
[1759450039593,0.60938,4477.5,4477.4,1.35119]
[1759450039793,0.91278,4477.5,4477.4,1.35119]
[1759450040089,1.12148,4477.5,4477.4,1.35119]
[1759450040292,1.12148,4477.5,4477.4,0.9495]
[1759450040686,1.25568,4477.5,4477.4,0.9495]
[1759450042092,1.25568,4477.5,4477.4,1.35119]
[1759450043594,1.25568,4477.5,4477.4,0.9495]
[1759450044802,1.25568,4477.5,4477.4,1.35119]
[1759450044992,0.82151,4477.2,4477.1,3.81222]
[1759450045188,1.14151,4477.2,4477.1,4.36572]
[1759450045595,1.14151,4477.2,4477.1,3.2078]
[1759450045796,1.14151,4477.2,4477.1,3.4328]
[1759450045993,1.14151,4477.2,4477.1,3.2078]
[1759450046197,1.14151,4477.2,4477.1,3.4328]
[1759450047292,1.14151,4477.2,4477.1,3.2078]
[1759450047791,1.14151,4477.2,4477.1,3.4328]
[1759450047995,1.14156,4476.7,4476.6,3.739]
[1759450048192,4.34936,4476.7,4476.6,3.6355]
[1759450048398,1.14156,4476.7,4476.6,3.6355]
[1759450049098,1.14156,4476.7,4476.6,3.2078]
[1759450049292,1.1416,4476.2,4476.1,4.14081]
[1759450049495,0.7398,4476.2,4476.1,4.58371]
[1759450050793,0.7398,4476.2,4476.1,4.35871]
[1759450050995,0.7398,4476.2,4476.1,3.6355]
[1759450051502,0.7398,4476.2,4476.1,3.4328]
[1759450051995,0.7398,4476.2,4476.1,3.2078]
[1759450052300,0.7398,4476.2,4476.1,3.4328]
[1759450052895,1.1416,4476.2,4476.1,3.4328]
[1759450053396,1.1416,4476.2,4476.1,3.95]
[1759450053796,1.1416,4476.2,4476.1,3.725]
[1759450053998,1.1416,4476.2,4476.1,3.95]
[1759450054300,1.1416,4476.2,4476.1,4.1578]
[1759450056397,1.1416,4476.2,4476.1,0.95]
[1759450057105,1.1416,4476.2,4476.1,0.725]
[1759450057304,1.1416,4476.2,4476.1,0.95]
[1759450058606,1.1416,4476.2,4476.1,0.725]
[1759450059305,1.1416,4476.2,4476.1,0.4105]
[1759450059805,1.1416,4476.2,4476.1,0.2027]
[1759450061806,1.1416,4476.2,4476.1,0.7422]
[1759450062005,1.1416,4476.2,4476.1,0.95]
[1759450063305,1.1416,4476.2,4476.1,0.725]
[1759450063506,1.1416,4476.2,4476.1,0.95]
[1759450069413,0.5143,4476.5,4476.4,1.13978]
[1759450070302,0.91608,4476.5,4476.4,1.13978]
[1759450072012,1.12654,4477.0,4476.9,1.13974]
[1759450072013,0.91604,4477.0,4476.9,1.13974]
[1759450072213,1.13664,4477.0,4476.9,0.738]
[1759450072410,4.47694,4477.0,4476.9,0.738]
[1759450072814,0.5143,4476.3,4476.2,1.1398]
[1759450073115,0.3079,4476.6,4476.5,1.26567]
[1759450073614,0.5143,4476.6,4476.5,1.26567]
[1759450073817,0.91606,4476.6,4476.5,1.26567]
[1759450077923,1.13666,4476.6,4476.5,0.7552]
[1759450078223,1.13666,4476.6,4476.5,1.15697]
[1759450078420,0.7349,4476.6,4476.5,1.36477]
[1759450078621,1.13666,4476.6,4476.5,1.36477]
[1759450078814,3.2078,4477.3,4476.8,0.40174]
[1759450078815,0.2064,4476.9,4476.8,0.40174]
[1759450079022,0.2064,4476.9,4476.8,1.36474]
[1759450079321,0.91604,4476.9,4476.8,1.36474]
[1759450079522,0.91604,4476.9,4476.8,0.963]
[1759450080424,0.91604,4476.9,4476.8,1.36475]
[1759450080724,0.5143,4476.9,4476.8,1.36475]
[1759450080921,0.91601,4477.2,4477.1,0.5223]
[1759450081219,1.41070728,4477.2,4477.1,0.738]
[1759450081415,1.63130728,4477.2,4477.1,0.738]
[1759450082121,0.60967,4476.6,4476.5,0.7271]
[1759450082325,1.13647,4476.6,4476.5,0.9521]
[1759450083420,0.82889,4476.3,4476.2,0.5165]
[1759450083620,1.13649,4476.3,4476.2,0.9521]
[1759450083926,1.13649,4476.3,4476.2,1.3539]
[1759450084426,1.13649,4476.3,4476.2,0.9521]
[1759450084620,0.62104,4475.8,4475.7,0.2062]
[1759450084824,1.13654,4475.8,4475.7,1.35395]
[1759450085127,0.7347,4475.8,4475.7,1.35395]
[1759450085530,1.13654,4475.8,4475.7,0.9521]
[1759450085725,1.13654,4475.8,4475.7,1.35395]
[1759450085926,0.7347,4475.8,4475.7,1.35395]
[1759450087728,0.7347,4475.8,4475.7,0.4312]
[1759450087729,1.13654,4475.8,4475.7,0.4312]
[1759450088229,1.13654,4475.8,4475.6,3.2078]
[1759450088230,0.70945,4475.7,4475.6,3.2078]
[1759450088524,0.70945,4475.7,4475.2,0.40189]
[1759450088525,0.7347,4475.2,4475.1,3.72689476]
[1759450088727,0.7347,4475.2,4475.1,3.95189476]
[1759450089033,0.7347,4475.2,4475.1,3.64159476]
[1759450089532,0.7347,4475.2,4475.1,4.16249476]
[1759450090425,0.7347,4475.2,4475.1,3.93749476]
[1759450090630,0.7347,4475.2,4475.1,4.16249476]
[1759450092634,0.5155,4475.2,4475.1,4.16249476]
[1759450092932,0.7347,4475.5,4475.4,0.7271]
[1759450093134,0.7347,4475.5,4475.4,0.9521]
[1759450093330,3.9425,4475.5,4475.4,1.35397]
[1759450094123,4.0647,4475.5,4475.4,1.12897]
[1759450094329,4.46656,4475.5,4475.4,1.04367]
[1759450094836,4.46656,4475.5,4475.4,1.35397]
[1759450095834,4.0647,4475.5,4475.4,1.35397]
[1759450096338,4.0647,4475.5,4475.4,1.12897]
[1759450096533,4.0647,4475.5,4475.4,1.35397]
[1759450096733,4.46656,4475.5,4475.4,1.35397]
[1759450098040,4.0647,4475.5,4475.4,1.35397]
[1759450098234,4.46656,4475.5,4475.4,0.9521]
[1759450098436,4.46656,4475.5,4475.4,0.4312]
[1759450098637,4.46656,4475.5,4475.4,0.83307]
[1759450099238,4.0647,4475.5,4475.4,0.83307]
[1759450100638,4.46656,4475.5,4475.4,0.83307]
[1759450101432,4.46656,4475.5,4475.4,0.62687]
[1759450101637,4.0647,4475.5,4475.4,0.83307]
[1759450103331,4.0647,4475.5,4475.4,1.35397]
[1759450103736,3.9425,4475.5,4475.4,1.35397]
[1759450104238,4.34436,4475.5,4475.4,1.35397]
[1759450104439,4.46656,4475.5,4475.4,1.35397]
[1759450104632,4.46656,4475.5,4475.4,0.4312]
[1759450104832,4.46656,4475.5,4475.4,0.62687]
[1759450105039,4.0647,4475.5,4475.4,0.84997]
[1759450105229,4.0647,4475.5,4475.4,1.15767]
[1759450107238,4.0647,4475.5,4475.4,1.37467]
[1759450107442,3.9425,4475.5,4475.4,1.37467]
[1759450108130,4.0704,4475.5,4475.4,0.84997]
[1759450110744,4.0704,4475.5,4475.4,0.84897]
[1759450111244,4.0704,4475.5,4475.4,0.62587]
[1759450114240,4.96803485,4475.5,4475.4,0.40187]
[1759450114443,4.96803485,4475.5,4475.4,0.224]
[1759450114945,0.40189,4475.3,4475.1,0.40448476]
[1759450115150,0.7472,4475.2,4475.1,0.40448476]
[1759450115346,0.7472,4475.2,4475.1,0.83738476]
[1759450115649,1.14909,4475.2,4475.1,0.83738476]
[1759450118351,1.64548757,4475.2,4475.1,0.83738476]
[1759450119156,1.64548757,4475.2,4475.1,1.16548476]
[1759450119454,1.24359757,4475.2,4475.1,1.16548476]
[1759450119962,0.7472,4475.2,4475.1,1.37278476]
[1759450120854,0.2119,4475.5,4475.4,0.7443]
[1759450121049,1.3125384,4475.5,4475.4,0.7443]
[1759450121249,4.5203384,4475.5,4475.4,0.7443]
[1759450121454,4.9838384,4475.5,4475.4,0.4162]
[1759450121659,4.9838384,4475.5,4475.4,0.2089]
[1759450122255,0.81618,4475.3,4475.2,0.61078]
[1759450122553,4.8532584,4475.3,4475.2,0.4329]
[1759450123146,4.8532584,4475.3,4475.2,0.224]
[1759450123554,0.40189,4475.2,4475.1,0.00259476]
[1759450123754,4.8532684,4475.2,4475.1,0.62849476]
[1759450123953,1.6454684,4475.2,4475.1,0.61339476]
[1759450124155,1.6454684,4475.2,4475.1,0.83739476]
[1759450124557,1.6454684,4475.2,4475.1,0.43549476]
[1759450124758,1.6454684,4475.2,4475.1,0.83739476]
[1759450125256,1.6454684,4475.2,4475.1,1.16549476]
[1759450125756,1.2435784,4475.2,4475.1,1.37279476]
[1759450126853,1.2435784,4475.2,4475.1,1.14879476]
[1759450127061,1.2435784,4475.2,4475.1,1.37279476]
[1759450127262,1.6454684,4475.2,4475.1,1.37279476]
[1759450129764,1.6454684,4475.2,4475.1,1.37279476]
[1759450131166,1.2435784,4475.2,4475.1,1.37279476]
[1759450132466,1.6454684,4475.2,4475.1,1.37279476]
[1759450138275,1.6454684,4475.2,4475.1,0.40449476]
[1759450138472,1.6454684,4475.2,4475.1,0.62849476]
[1759450138873,1.6454684,4475.2,4475.1,0.83739476]
[1759450139371,1.6454684,4475.2,4475.1,1.16549476]
[1759450139977,1.2435784,4475.2,4475.1,1.16549476]
[1759450140276,1.2435784,4475.2,4475.1,1.37279476]
[1759450140975,1.6454684,4475.2,4475.1,1.37279476]
[1759450141174,1.6454684,4475.2,4475.1,0.97089476]
[1759450142076,1.6454684,4475.2,4475.1,1.37279476]
[1759450142572,1.6454684,4475.2,4475.1,1.04469476]
[1759450142978,1.6454684,4475.2,4475.1,1.36739476]
[1759450144282,1.6454684,4475.2,4475.1,1.14339476]
[1759450144482,1.6454684,4475.2,4475.1,1.36739476]
[1759450144677,0.4963784,4475.2,4475.1,1.14339476]
[1759450144974,0.92067,4475.5,4475.4,0.7554]
[1759450145180,1.62886296,4475.5,4475.4,0.7554]
[1759450145387,1.75246296,4475.5,4475.4,0.7554]
[1759450145672,4.96026296,4475.5,4475.4,0.7554]
[1759450146082,4.96026296,4475.5,4475.4,0.224]
[1759450146979,5.56307296,4475.5,4475.3,0.224]
[1759450147178,5.56307296,4475.5,4475.1,0.00259476]
[1759450147179,4.34059,4475.2,4475.1,0.00259476]
[1759450147378,1.62888296,4475.2,4475.1,0.00259476]
[1759450150785,1.1329,4474.0,4473.9,0.7554]
[1759450151083,1.2565,4474.0,4473.9,0.8534]
[1759450151283,1.13292,4473.8,4473.7,0.2091]
[1759450151482,1.13292,4473.8,4473.7,0.7558]
[1759450151678,1.13479624,4473.8,4473.7,0.7584838]
[1759450151881,1.13479624,4473.8,4473.7,0.5344838]
[1759450152880,1.13479624,4473.8,4473.7,0.0026838]
[1759450153086,4.34259624,4473.8,4473.7,0.0026838]
[1759450155583,4.34259624,4473.8,4473.7,0.7580838]
[1759450155779,3.94057624,4473.8,4473.7,1.1601038]
[1759450155985,3.94057624,4473.8,4473.7,0.7580838]
[1759450158495,3.94057624,4473.8,4473.7,0.9820838]
[1759450158690,3.94057624,4473.8,4473.7,0.4357838]
[1759450158995,3.94057624,4473.8,4473.7,0.2266838]
[1759450160295,4.34259624,4473.8,4473.7,0.0026838]
[1759450160493,4.34259624,4473.8,4473.7,0.2266838]
[1759450160994,4.34259624,4473.8,4473.7,0.8378038]
[1759450161291,4.34259624,4473.8,4473.7,0.5344838]
[1759450164198,4.34259624,4473.8,4473.7,0.2117838]
[1759450166496,4.34259624,4473.8,4473.7,0.4357838]
[1759450166702,4.34259624,4473.8,4473.7,0.8378038]
[1759450167198,4.34259624,4473.8,4473.7,0.4357838]
[1759450167998,4.34259624,4473.8,4473.7,0.2117838]
[1759450168302,4.34259624,4473.8,4473.7,0.8378038]
[1759450169706,0.73277624,4473.8,4473.7,1.3487038]
[1759450170799,1.13479624,4473.8,4473.7,1.3487038]
[1759450170996,0.73277624,4473.8,4473.7,1.3487038]
[1759450171699,1.13479624,4473.8,4473.7,1.3487038]
[1759450171902,0.73277624,4473.8,4473.7,1.3487038]
[1759450172803,1.13479624,4473.8,4473.7,1.3487038]
[1759450174698,1.13479624,4473.8,4473.7,0.4357838]
[1759450175301,1.13479624,4473.8,4473.7,0.8378038]
[1759450176394,1.13479624,4473.8,4473.7,0.4357838]
[1759450176596,1.13479624,4473.8,4473.7,0.2117838]
[1759450176795,1.13479624,4473.8,4473.7,0.4357838]
[1759450177496,1.13479624,4473.8,4473.7,0.2266838]
[1759450177694,4.34259624,4473.8,4473.7,0.2266838]
[1759450178201,4.84079978,4473.8,4473.7,0.0026838]
[1759450180002,1.63299978,4473.8,4473.7,0.0026838]
[1759450180204,4.84079978,4473.8,4473.7,0.0026838]
[1759450185905,4.84079978,4473.8,4473.7,0.2214838]
[1759450186802,4.84079978,4473.8,4473.7,0.0026838]
[1759450190911,5.06479978,4473.8,4473.7,0.0026838]
[1759450192608,0.2115,4473.0,4472.9,3.63224711]
[1759450192912,0.8848,4473.0,4472.9,4.17894711]
[1759450193616,1.28689,4473.0,4472.9,3.77895101]
[1759450193916,1.78561963,4473.0,4472.9,3.77895101]
[1759450194110,1.28689,4473.0,4472.9,3.77895101]
[1759450194912,1.28689,4473.0,4472.9,4.18105101]
[1759450195109,1.28689,4473.0,4472.9,0.97325101]
[1759450197116,0.8848,4473.0,4472.9,0.97325101]
[1759450197412,0.8848,4473.0,4472.9,1.18825101]
[1759450197613,1.28689,4473.0,4472.9,1.18825101]
[1759450198510,0.5301,4473.0,4472.9,1.18825101]
[1759450198709,0.2115,4473.0,4472.9,1.18825101]
[1759450198914,0.93219,4473.0,4472.9,1.18825101]
[1759450199815,0.5301,4473.0,4472.9,1.18825101]
[1759450200216,0.93219,4473.0,4472.9,1.18825101]
[1759450200716,0.5301,4473.0,4472.9,1.18825101]
[1759450201311,0.5301,4473.0,4472.9,0.78615101]
[1759450201518,0.93219,4473.0,4472.9,1.18825101]
[1759450202119,0.5301,4473.0,4472.9,1.18825101]
[1759450202514,0.93219,4473.0,4472.9,1.18825101]
[1759450202716,1.15429,4473.0,4472.9,1.18825101]
[1759450207419,0.93219,4473.0,4472.9,1.18825101]
[1759450207921,1.14029,4473.0,4472.9,1.18825101]
[1759450208714,0.7382,4473.0,4472.9,1.18825101]
[1759450209119,1.14029,4473.0,4472.9,1.18825101]
[1759450209714,1.14029,4473.0,4472.9,0.78615101]
[1759450210114,1.14029,4473.0,4472.9,1.18825101]
[1759450211221,0.7382,4473.0,4472.9,1.18825101]
[1759450211717,0.5328,4473.5,4473.4,1.13934]
[1759450211914,1.43333799,4473.5,4473.4,0.7373]
[1759450212110,1.43333799,4473.5,4473.2,0.2036]
[1759450212111,0.40206,4473.3,4473.2,0.2036]
[1759450212315,4.84925799,4473.3,4473.2,0.7577]
[1759450212517,1.64145799,4473.3,4473.2,0.7577]
[1759450213326,1.64145799,4473.3,4473.2,0.9613]
[1759450214021,1.23939799,4473.3,4473.2,1.36337]
[1759450214327,0.49849799,4473.3,4473.2,1.36337]
[1759450214525,1.43335799,4473.3,4473.2,0.9613]
[1759450215112,0.71469799,4473.3,4473.2,1.36337]
[1759450215322,0.40205,4473.4,4473.3,0.7373]
[1759450215625,1.21726406,4473.4,4473.3,0.7373]
[1759450215826,1.43346406,4473.4,4473.3,0.7373]
[1759450217323,0.81521406,4473.4,4473.3,1.13936]
[1759450217525,0.3166,4473.4,4473.3,1.13936]
[1759450217725,0.40205,4473.4,4473.3,1.13936]
[1759450217918,0.5328,4473.6,4473.5,1.26724]
[1759450218119,0.5328,4473.6,4473.5,0.8652]
[1759450218517,0.5328,4473.6,4473.5,1.26724]
[1759450219026,0.5328,4473.6,4473.5,0.8652]
[1759450224230,0.5328,4473.6,4473.5,0.7373]
[1759450224731,0.93483,4473.6,4473.5,0.7373]
[1759450225431,0.93483,4473.6,4473.5,0.9613]
[1759450228938,1.15493,4473.6,4473.5,0.7373]
[1759450229134,1.15493,4473.6,4473.5,0.9613]
[1759450231935,0.61823,4473.6,4473.5,1.49084]
[1759450232136,0.61823,4473.6,4473.5,1.0888]
[1759450232733,0.95033,4473.6,4473.5,1.0888]
[1759450235432,0.95033,4473.6,4473.5,0.9613]
[1759450237531,1.16903,4473.6,4473.5,0.9613]
[1759450239241,1.16903,4473.6,4473.5,0.4276]
[1759450239451,3.9748,4473.6,4473.3,3.2078]
[1759450239654,0.767,4473.6,4473.5,0.224]
[1759450239846,1.26276684,4473.6,4473.5,0.224]
[1759450240148,0.4352,4473.4,4473.3,3.2078]
[1759450240352,3.9751,4473.4,4473.3,3.4318]
[1759450240649,0.7673,4473.4,4473.3,3.4318]
[1759450241047,0.7673,4473.4,4473.3,3.2078]
[1759450241254,0.7673,4473.4,4473.3,3.4318]
[1759450241454,0.7673,4473.4,4473.3,3.2078]
[1759450241750,0.7673,4473.4,4473.3,3.4318]
[1759450242455,0.7673,4473.4,4473.3,3.2078]
[1759450242653,0.7673,4473.4,4473.3,3.4318]
[1759450243055,0.7673,4473.4,4473.3,3.2078]
[1759450243352,0.7673,4473.4,4473.3,3.4318]
[1759450243552,0.7673,4473.4,4473.3,3.2078]
[1759450243750,0.95899,4473.0,4472.9,0.02445101]
[1759450243950,4.49889,4473.0,4472.9,0.24845101]
[1759450244654,4.49889,4473.0,4472.9,0.47215101]
[1759450244853,4.49889,4473.0,4472.9,0.79805101]
[1759450248058,4.49889,4473.0,4472.9,0.24845101]
[1759450248752,4.99430879,4473.0,4472.9,0.02445101]
[1759450249554,4.59221879,4473.0,4472.9,0.78705101]
[1759450249758,4.37719,4473.0,4472.9,0.78705101]
[1759450249956,4.49889,4473.0,4472.9,0.46115101]
[1759450250257,4.49889,4473.0,4472.9,0.24815101]
[1759450253361,4.49889,4473.0,4472.9,0.02445101]
[1759450253762,4.99396852,4473.0,4472.9,0.02445101]
[1759450258760,4.99396852,4473.0,4472.9,0.24815101]
[1759450258959,5.21796852,4473.0,4472.9,0.78705101]
[1759450259563,4.99396852,4473.0,4472.9,0.78705101]
[1759450259762,5.21796852,4473.0,4472.9,0.78705101]
[1759450260866,1.26767852,4473.0,4472.9,0.78705101]
[1759450261069,0.5486,4473.0,4472.9,0.78705101]
[1759450261268,0.7726,4473.0,4472.9,0.78705101]
[1759450261970,0.9913,4473.0,4472.9,0.78705101]
[1759450263275,1.1209,4473.0,4472.9,0.24815101]
[1759450264472,1.61575685,4473.0,4472.9,0.24815101]
[1759450264768,1.61575685,4473.0,4472.9,0.02445101]
[1759450265175,1.61575685,4473.0,4472.9,0.56535101]
[1759450265368,1.61575685,4473.0,4472.9,0.78105101]
[1759450267271,1.61575685,4473.0,4472.9,0.24505101]
[1759450267870,1.61575685,4473.0,4472.9,0.02445101]
[1759450268668,4.82355685,4473.0,4472.9,0.02445101]
[1759450269070,4.82355685,4473.0,4472.9,0.24505101]
[1759450269462,4.82355685,4473.0,4472.9,0.56535101]
[1759450269663,4.59955685,4473.0,4472.9,0.78105101]
[1759450269868,1.61575685,4473.0,4472.9,0.78105101]
[1759450270075,4.82355685,4473.0,4472.9,0.78105101]
[1759450270475,4.82355685,4473.0,4472.9,0.02445101]
[1759450272974,5.22564685,4473.0,4472.9,0.02445101]
[1759450274776,5.00164685,4473.0,4472.9,0.02445101]
[1759450274971,5.22564685,4473.0,4472.9,0.02445101]
[1759450277475,0.4021,4472.9,4472.8,0.02003605]
[1759450277677,4.86235685,4472.9,4472.8,0.02003605]
[1759450277878,1.65455685,4472.9,4472.8,0.02003605]
[1759450278479,1.65455685,4472.9,4472.8,0.02176192]
[1759450279587,1.87855685,4472.9,4472.8,0.02176192]